bitfinex/quotes_BTCUSD_20220201
["timestamp","ask_amount","ask_price","bid_price","bid_amount"]
[1643682409289,0.0019326,38454.0,38453.0,0.349894]
[1643682410491,0.0019326,38454.0,38453.0,0.78017]
[1643682411332,0.0019326,38454.0,38453.0,1.130064]
[1643682413136,0.4519326,38454.0,38453.0,1.130064]
[1643682413333,0.5019326,38454.0,38453.0,0.78017]
[1643682413531,0.1538326,38454.0,38453.0,0.78017]
[1643682413931,0.55129535,38454.0,38453.0,0.78017]
[1643682414134,0.55129535,38454.0,38440.0,0.23969066]
[1643682414135,0.75,38453.0,38440.0,0.23969066]
[1643682414334,0.05,38447.0,38435.0,0.35619066]
[1643682414631,0.05,38447.0,38436.0,1.130314]
[1643682414632,0.0519,38446.0,38436.0,1.130314]
[1643682414835,0.2802048,38445.0,38438.0,0.28691803]
[1643682415081,0.0519,38444.0,38439.0,0.349894]
[1643682415384,0.0519,38444.0,38436.0,1.04757634]
[1643682415385,0.149732,38444.0,38436.0,0.78042]
[1643682415581,0.05,38438.0,38436.0,0.78042]
[1643682415783,0.8519,38437.0,38436.0,0.78042]
[1643682415980,0.787861,38437.0,38436.0,0.78042]
[1643682416180,0.737861,38437.0,38436.0,0.78042]
[1643682417579,0.7009,38437.0,38436.0,0.78042]
[1643682419229,0.0519,38437.0,38436.0,1.00439564]
[1643682419628,0.00138147,38438.0,38436.0,1.35428964]
[1643682419830,0.00138147,38438.0,38437.0,0.349894]
[1643682420031,0.00138147,38438.0,38436.0,1.07379491]
[1643682420227,0.00138147,38438.0,38437.0,0.24949477]
[1643682420427,0.00138147,38438.0,38437.0,0.59938877]
[1643682420627,0.00138145,38439.0,38437.0,0.59938877]
[1643682420828,0.00138145,38439.0,38438.0,0.349894]
[1643682421029,0.00138145,38439.0,38436.0,0.78042]
[1643682421728,0.0519,38443.0,38436.0,0.78042]
[1643682421928,0.00138145,38439.0,38436.0,0.78042]
[1643682422777,0.0519,38443.0,38436.0,0.78042]
[1643682422977,0.00138145,38439.0,38436.0,0.78042]
[1643682423174,0.00138145,38439.0,38437.0,0.349894]
[1643682423975,0.0519,38443.0,38438.0,0.09603927]
[1643682424274,0.00139988,38440.0,38438.0,0.09603927]
[1643682425074,0.0519,38443.0,38438.0,0.09603927]
[1643682425277,0.0519,38443.0,38436.0,0.78042]
[1643682425474,0.00139986,38441.0,38436.0,0.78042]
[1643682426328,0.0519,38443.0,38436.0,0.78042]
[1643682426727,0.00139987,38440.0,38436.0,0.78042]
[1643682426927,0.00139987,38440.0,38437.0,0.349894]
[1643682427130,0.00139987,38440.0,38439.0,0.22098002]
[1643682428033,0.242954,38445.0,38439.0,0.22098002]
[1643682428034,0.00139571,38441.0,38439.0,0.22098002]
[1643682428330,0.00139571,38441.0,38436.0,0.78042]
[1643682428530,0.0519,38440.0,38436.0,0.78042]
[1643682428736,0.1019,38440.0,38436.0,0.78042]
[1643682428928,0.036961,38439.0,38436.0,0.78042]
[1643682429128,0.0519,38438.0,38436.0,0.78042]
[1643682429329,0.0519,38437.0,38436.0,0.78042]
[1643682429983,0.15376662,38437.0,38436.0,0.78042]
[1643682430375,0.21884662,38437.0,38436.0,0.78042]
[1643682430678,0.4834224,38437.0,38436.0,0.78042]
[1643682431877,0.6334224,38437.0,38436.0,0.78042]
[1643682432277,0.35580762,38437.0,38436.0,0.78042]
[1643682432678,0.25580762,38437.0,38436.0,0.78042]
[1643682434126,0.25580762,38437.0,38436.0,0.78030569]
[1643682434127,0.48228373,38437.0,38436.0,0.78030569]
[1643682434327,0.25580762,38437.0,38436.0,0.78030569]
[1643682434930,0.088861,38437.0,38436.0,0.78030569]
[1643682436233,0.19079971,38437.0,38436.0,0.78030569]
[1643682436838,0.42133847,38437.0,38436.0,0.78030569]
[1643682437479,0.31939976,38437.0,38436.0,0.78030569]
[1643682437675,0.088861,38437.0,38436.0,0.78030569]
[1643682438478,0.036961,38437.0,38436.0,0.78030569]
[1643682438674,0.06508,38438.0,38436.0,0.78030569]
[1643682438675,0.00138365,38438.0,38436.0,0.78030569]
[1643682439674,0.09980672,38440.0,38436.0,0.78030569]
[1643682440076,0.03834464,38439.0,38436.0,0.78030569]
[1643682441234,0.03834463,38439.0,38436.0,0.78030569]
[1643682441421,0.00138363,38439.0,38436.0,0.78030569]
[1643682442023,0.22615809,38440.0,38436.0,0.78030569]
[1643682442425,0.0012578,38439.0,38436.0,0.78030569]
[1643682442827,0.0519,38438.0,38436.0,0.78030569]
[1643682443025,0.94369051,38437.0,38436.0,0.78030569]
[1643682443224,1.27305129,38437.0,38436.0,0.78030569]
[1643682443424,0.62305129,38437.0,38436.0,0.78030569]
[1643682443624,0.67305129,38437.0,38436.0,0.78030569]
[1643682449024,0.67237699,38437.0,38436.0,0.78030569]
[1643682449423,0.1881867,38437.0,38436.0,0.78030569]
[1643682449624,0.41639517,38437.0,38436.0,0.78030569]
[1643682450423,0.64522231,38437.0,38436.0,0.78030569]
[1643682451626,0.41701384,38437.0,38436.0,0.78030569]
[1643682451822,0.1881867,38437.0,38436.0,0.78030569]
[1643682457343,0.2881867,38437.0,38436.0,0.78030569]
[1643682457543,0.9371867,38437.0,38436.0,0.78030569]
[1643682457944,1.0371867,38437.0,38436.0,0.78030569]
[1643682458543,1.6371867,38437.0,38436.0,0.63793866]
[1643682458945,1.6371867,38437.0,38436.0,0.46152535]
[1643682459145,0.065098,38434.0,38424.0,0.242954]
[1643682459449,0.065098,38434.0,38426.0,0.00116577]
[1643682459450,0.130196,38430.0,38426.0,0.00116577]
[1643682459643,1.177536,38427.0,38426.0,0.00116577]
[1643682459846,1.316397,38427.0,38426.0,0.00116577]
[1643682460081,1.366397,38427.0,38426.0,0.00116577]
[1643682460281,0.0749474,38417.0,38415.0,0.242954]
[1643682460478,0.0749474,38417.0,38416.0,0.349894]
[1643682460781,0.1268474,38417.0,38416.0,0.242954]
[1643682460978,0.0519,38417.0,38416.0,0.242954]
[1643682461380,0.0519,38417.0,38414.0,0.31884946]
[1643682461578,0.0519,38417.0,38415.0,0.349894]
[1643682461982,0.0519,38417.0,38415.0,0.35047705]
[1643682462379,0.0519,38417.0,38416.0,0.85381564]
[1643682462580,0.0519,38417.0,38416.0,1.41941816]
[1643682463181,0.0519,38424.0,38416.0,1.41941816]
[1643682463380,0.05,38426.0,38423.0,0.26773782]
[1643682463581,0.05,38426.0,38424.0,0.07700006]
[1643682463822,0.1019,38429.0,38426.0,0.33753301]
[1643682464023,0.18616372,38429.0,38426.0,0.33753301]
[1643682464727,0.036961,38428.0,38426.0,0.33753301]
[1643682465926,0.18616372,38429.0,38426.0,0.33753301]
[1643682466128,0.1019,38429.0,38426.0,0.33753301]
[1643682466527,0.1019,38429.0,38426.0,0.33882993]
[1643682467331,0.05,38429.0,38427.0,0.24492322]
[1643682467590,0.05,38429.0,38426.0,0.33882993]
[1643682467591,0.001999,38430.0,38426.0,0.33753301]
[1643682467790,0.001999,38430.0,38426.0,0.33866927]
[1643682467988,0.0033815,38430.0,38427.0,0.349894]
[1643682468191,0.0033815,38430.0,38429.0,0.22511784]
[1643682468789,0.001999,38430.0,38429.0,0.22511784]
[1643682469695,0.001999,38430.0,38426.0,0.6106779]
[1643682470091,0.001999,38430.0,38426.0,0.60954165]
[1643682470291,0.00338151,38430.0,38426.0,0.6106779]
[1643682470691,0.00338151,38430.0,38428.0,0.25604684]
[1643682471325,0.001999,38430.0,38428.0,0.25604684]
[1643682473524,0.001999,38430.0,38426.0,0.33870541]
[1643682473728,0.05,38433.0,38426.0,0.33753301]
[1643682474025,0.00140056,38431.0,38426.0,0.33870541]
[1643682474226,0.0519,38430.0,38426.0,0.33870541]
[1643682474424,0.116988,38430.0,38426.0,0.33870541]
[1643682474831,0.116988,38430.0,38426.0,0.33753301]
[1643682475076,0.166988,38430.0,38426.0,0.33753301]
[1643682477879,0.116988,38430.0,38426.0,0.33753301]
[1643682478726,0.065092,38429.0,38426.0,0.33896666]
[1643682478924,0.0519,38428.0,38426.0,0.00143365]
[1643682479324,0.26143137,38427.0,38426.0,0.00143365]
[1643682479523,0.31333137,38427.0,38426.0,0.00143365]
[1643682479724,0.43811245,38427.0,38418.0,0.34164034]
[1643682479927,0.43811245,38427.0,38418.0,0.5568035]
[1643682479928,0.05,38425.0,38418.0,0.5568035]
[1643682480130,0.05,38425.0,38422.0,0.30147173]
[1643682481126,0.05,38425.0,38422.0,0.30290555]
[1643682481528,0.0519,38424.0,38422.0,0.30290555]
[1643682482126,0.0519,38424.0,38422.0,0.30147173]
[1643682484977,0.0519,38424.0,38421.0,0.0011198]
[1643682485178,0.1019,38424.0,38421.0,0.0011198]
[1643682485381,0.167,38424.0,38421.0,0.0011198]
[1643682485980,0.23003048,38423.0,38421.0,0.00139185]
[1643682486228,0.0519,38422.0,38421.0,0.00139185]
[1643682487031,0.09371894,38421.0,38419.0,0.78081]
[1643682487231,0.09371894,38421.0,38420.0,0.00139187]
[1643682487432,0.14561894,38421.0,38420.0,0.00139187]
[1643682488134,0.14561894,38421.0,38419.0,0.78081]
[1643682488331,0.14561894,38421.0,38419.0,0.78220189]
[1643682488332,0.21072194,38421.0,38419.0,0.78220189]
[1643682489132,0.117003,38421.0,38419.0,0.78220189]
[1643682489331,0.117003,38421.0,38419.0,0.78081]
[1643682497232,0.036961,38420.0,38419.0,0.78081]
[1643682497482,0.0519,38420.0,38419.0,0.78081]
[1643682497675,0.0519,38420.0,38419.0,0.78071208]
[1643682499377,0.0519,38420.0,38419.0,0.85795895]
[1643682500683,0.065103,38421.0,38419.0,0.85795895]
[1643682501434,0.065103,38421.0,38420.0,0.349894]
[1643682501632,0.065103,38421.0,38419.0,0.85795895]
[1643682501833,0.065103,38421.0,38419.0,1.15636935]
[1643682502235,0.065103,38421.0,38420.0,0.349894]
[1643682502633,0.065103,38421.0,38419.0,1.15636935]
[1643682502837,0.065103,38421.0,38419.0,1.15776509]
[1643682503940,0.05,38425.0,38419.0,1.15636935]
[1643682504135,0.065093,38424.0,38423.0,0.26499278]
[1643682505477,0.065093,38424.0,38422.0,0.0007183]
[1643682506177,0.065093,38424.0,38419.0,0.85795895]
[1643682506378,0.065093,38424.0,38421.0,0.00071831]
[1643682507477,0.065093,38424.0,38419.0,1.07199725]
[1643682507677,0.065093,38424.0,38421.0,0.00143526]
[1643682508727,0.065093,38424.0,38419.0,1.0696359]
[1643682508928,0.065093,38424.0,38421.0,0.00143526]
[1643682509930,0.065093,38424.0,38419.0,1.0696359]
[1643682510130,0.065093,38424.0,38421.0,0.00071763]
[1643682511032,0.065093,38424.0,38419.0,0.85795895]
[1643682511233,0.065093,38424.0,38421.0,0.00071763]
[1643682512233,0.065093,38424.0,38419.0,0.85795895]
[1643682512500,0.065093,38424.0,38421.0,0.00143526]
[1643682514593,0.065093,38424.0,38419.0,0.85795895]
[1643682514894,0.065093,38424.0,38421.0,0.00143526]
[1643682515892,0.065093,38424.0,38419.0,0.85795895]
[1643682516328,0.065093,38424.0,38421.0,0.00143526]
[1643682516528,0.31070769,38424.0,38421.0,0.00143526]
[1643682517130,0.31070769,38424.0,38419.0,0.85795895]
[1643682517329,0.31070769,38424.0,38421.0,0.00143526]
[1643682518333,0.065098,38423.0,38419.0,0.78071208]
[1643682518534,0.065098,38423.0,38421.0,0.00111233]
[1643682519635,0.065098,38423.0,38419.0,0.85833847]
[1643682519979,0.065098,38423.0,38420.0,0.00111234]
[1643682520778,0.065098,38423.0,38419.0,0.78071208]
[1643682520978,0.065098,38423.0,38420.0,0.00111236]
[1643682521981,0.065098,38423.0,38419.0,0.78071208]
[1643682522180,0.065098,38423.0,38420.0,0.00118502]
[1643682523081,0.065098,38423.0,38419.0,0.78071208]
[1643682523380,0.065098,38423.0,38420.0,0.00118502]
[1643682523581,0.08036643,38421.0,38420.0,0.00118502]
[1643682524435,0.08036643,38421.0,38419.0,0.78071208]
[1643682524639,0.21057343,38421.0,38419.0,0.78189713]
[1643682524836,0.14546843,38421.0,38419.0,0.78189713]
[1643682525735,0.14546843,38421.0,38419.0,0.78071208]
[1643682527678,0.14505816,38421.0,38419.0,0.78071208]
[1643682527879,0.19505816,38421.0,38419.0,0.78071208]
[1643682528078,0.26016116,38421.0,38419.0,0.78071208]
[1643682531438,0.11469173,38421.0,38419.0,0.78071208]
[1643682531839,0.06469173,38421.0,38419.0,0.78071208]
[1643682534142,0.06469173,38421.0,38420.0,0.349894]
[1643682535178,0.06469173,38421.0,38419.0,0.78071208]
[1643682535378,0.06469173,38421.0,38419.0,0.78188363]
[1643682536280,0.06469173,38421.0,38419.0,0.78071208]
[1643682538732,0.12979273,38421.0,38419.0,0.78071208]
[1643682538933,0.06469173,38421.0,38419.0,0.78071208]
[1643682539134,0.065092,38424.0,38420.0,0.349894]
[1643682539336,0.065092,38424.0,38419.0,0.78071208]
[1643682539734,0.065092,38424.0,38422.0,0.23851769]
[1643682539937,0.07910311,38423.0,38422.0,0.23851769]
[1643682542599,0.07910311,38423.0,38421.0,0.00143526]
[1643682542808,0.14420257,38423.0,38421.0,0.00143526]
[1643682543002,0.27644585,38422.0,38421.0,0.00143526]
[1643682543600,0.065108,38421.0,38419.0,0.78071208]
[1643682543798,0.065108,38421.0,38420.0,0.0014353]
[1643682543999,0.117008,38421.0,38420.0,0.0014353]
[1643682544899,0.18211161,38421.0,38419.0,0.78071208]
[1643682545100,0.18211161,38421.0,38419.0,0.78214741]
[1643682545303,0.22590307,38420.0,38419.0,0.78214741]
[1643682545499,0.27780307,38420.0,38419.0,0.78214741]
[1643682545898,0.31476407,38420.0,38419.0,0.78214741]
[1643682546099,0.31476407,38420.0,38419.0,0.78071208]
[1643682546334,0.52756069,38420.0,38419.0,0.78071208]
[1643682551483,0.48625149,38420.0,38419.0,0.78071208]
[1643682551685,1.18525149,38420.0,38419.0,0.78071208]
[1643682551883,1.33525149,38420.0,38419.0,0.78071208]
[1643682552283,1.15065762,38420.0,38419.0,0.78071208]
[1643682552683,1.15065762,38420.0,38419.0,0.78063769]
[1643682554330,0.837861,38420.0,38419.0,0.78063769]
[1643682554531,0.787861,38420.0,38419.0,0.78012043]
[1643682554733,0.937861,38420.0,38419.0,0.78012043]
[1643682555332,1.21754862,38420.0,38419.0,0.78012043]
[1643682573482,0.75,38419.0,38418.0,0.00143537]
[1643682573683,0.065124,38414.0,38407.0,0.3607]
[1643682573891,0.115124,38412.0,38407.0,0.3607]
[1643682574082,0.65957601,38411.0,38407.0,0.3607]
[1643682574284,0.65957601,38411.0,38406.0,0.1185]
[1643682574481,0.65957601,38411.0,38405.0,0.42]
[1643682574681,0.10057456,38407.0,38405.0,0.42]
[1643682574884,0.117033,38406.0,38405.0,0.42]
[1643682575082,0.153994,38406.0,38405.0,0.42]
[1643682576333,0.38094777,38406.0,38405.0,0.42]
[1643682576733,0.153994,38406.0,38405.0,0.42]
[1643682576935,0.117033,38406.0,38405.0,0.42]
[1643682577535,0.0519,38406.0,38405.0,0.42]
[1643682578734,0.0519,38406.0,38405.0,0.51427484]
[1643682579535,0.0519,38406.0,38405.0,0.42]
[1643682582088,0.0519,38406.0,38405.0,0.51626003]
[1643682584441,0.0519,38406.0,38405.0,0.42]
[1643682585642,0.0519,38406.0,38405.0,0.51875932]
[1643682587242,0.0519,38406.0,38405.0,0.42]
[1643682593740,0.11703,38406.0,38405.0,0.42]
[1643682594140,0.153991,38406.0,38405.0,0.42]
[1643682595389,0.11703,38406.0,38405.0,0.42]
[1643682595889,0.11703,38406.0,38405.0,0.41989408]
[1643682596689,0.11695151,38406.0,38405.0,0.41989408]
[1643682597789,0.16695151,38406.0,38405.0,0.41989408]
[1643682598192,0.42975014,38406.0,38405.0,0.41989408]
[1643682598393,0.47975014,38406.0,38405.0,0.41989408]
[1643682598592,0.58273298,38406.0,38405.0,0.41989408]
[1643682599538,0.47975014,38406.0,38405.0,0.41989408]
[1643682599739,0.25391251,38406.0,38405.0,0.41989408]
[1643682600538,0.48267787,38406.0,38405.0,0.41989408]
[1643682600739,0.25391251,38406.0,38405.0,0.41989408]
[1643682602706,0.20391251,38406.0,38405.0,0.41989408]
[1643682606741,0.25391251,38406.0,38405.0,0.41989408]
[1643682607142,0.25391251,38406.0,38405.0,0.41489408]
[1643682609144,0.25391251,38406.0,38405.0,0.54148498]
[1643682609344,0.25391251,38406.0,38405.0,0.66807588]
[1643682611195,0.136961,38406.0,38405.0,0.66807588]
[1643682611393,0.1,38406.0,38405.0,0.66807588]
[1643682612593,0.05,38406.0,38405.0,0.66807588]
[1643682613392,0.05,38406.0,38405.0,0.89682806]
[1643682613851,0.18025605,38407.0,38405.0,0.89682806]
[1643682614050,0.18025605,38407.0,38405.0,0.88188647]
[1643682614250,0.11512305,38407.0,38406.0,0.21793483]
[1643682614453,0.11512305,38407.0,38406.0,0.34452573]
[1643682614650,0.11512305,38407.0,38406.0,0.2531818]
[1643682615250,0.11512305,38407.0,38406.0,0.46817694]
[1643682615450,0.11512305,38407.0,38406.0,0.2531818]
[1643682615655,0.11512305,38407.0,38406.0,0.46720853]
[1643682616452,0.11512305,38407.0,38406.0,0.2531818]
[1643682617690,0.06512305,38407.0,38406.0,0.2531818]
[1643682617890,0.11428888,38407.0,38406.0,0.2531818]
[1643682618091,0.11512305,38407.0,38406.0,0.2531818]
[1643682618294,0.06512305,38407.0,38406.0,0.2531818]
[1643682620897,0.11512305,38407.0,38406.0,0.2531818]
[1643682621096,0.06512305,38407.0,38406.0,0.2531818]
[1643682621940,0.06512305,38407.0,38406.0,0.46761505]
[1643682622143,0.06512305,38407.0,38406.0,0.2531818]
[1643682623344,0.06512305,38407.0,38406.0,0.46744495]
[1643682623745,0.11512305,38407.0,38406.0,0.46744495]
[1643682625292,0.06512305,38407.0,38406.0,0.46744495]
[1643682626095,0.06512305,38407.0,38406.0,0.2531818]
[1643682627392,0.06512305,38407.0,38406.0,0.4681853]
[1643682627691,0.06512305,38407.0,38406.0,0.2531818]
[1643682629545,0.06012305,38407.0,38406.0,0.2531818]
[1643682632346,0.05512305,38407.0,38406.0,0.2531818]
[1643682641516,0.10512305,38407.0,38406.0,0.2531818]
[1643682641718,0.15512305,38407.0,38406.0,0.2531818]
[1643682643119,0.05512305,38407.0,38406.0,0.2531818]
[1643682644848,0.45702305,38407.0,38406.0,0.2494085]
[1643682645047,0.19398405,38407.0,38406.0,0.2494085]
[1643682645247,0.52258224,38407.0,38406.0,0.1265909]
[1643682645643,0.52258224,38407.0,38406.0,0.2494085]
[1643682645845,0.78840641,38407.0,38406.0,0.2494085]
[1643682646246,0.78840641,38407.0,38406.0,0.183426]
[1643682646445,0.78840641,38407.0,38406.0,0.1228176]
[1643682646644,0.78840641,38407.0,38406.0,0.183426]
[1643682647506,0.52258224,38407.0,38406.0,0.183426]
[1643682649503,0.19398405,38407.0,38406.0,0.183426]
[1643682649704,0.52258224,38407.0,38406.0,0.183426]
[1643682650006,0.62258224,38407.0,38406.0,0.183426]
[1643682650202,0.29398405,38407.0,38406.0,0.183426]
[1643682651446,0.29398405,38407.0,38406.0,0.18154938]
[1643682651646,0.29398405,38407.0,38406.0,0.0606084]
[1643682651849,0.99398405,38407.0,38406.0,0.1768409]
[1643682652048,1.37750909,38407.0,38406.0,0.12094098]
[1643682652248,1.37750909,38407.0,38406.0,0.05589992]
[1643682652249,1.55296796,38407.0,38406.0,0.05589992]
[1643682652447,1.55296796,38407.0,38405.0,0.14496606]
[1643682652448,0.75,38406.0,38405.0,0.14496606]
[1643682652652,0.79382995,38406.0,38405.0,0.14639474]
[1643682652847,0.13866103,38403.0,38401.0,0.03074318]
[1643682653046,0.3559694,38402.0,38401.0,0.03074318]
[1643682653246,0.5559694,38402.0,38401.0,0.03074318]
[1643682653947,0.88222184,38402.0,38401.0,0.03074318]
[1643682654346,1.05768071,38402.0,38401.0,0.03074318]
[1643682655396,1.05768071,38402.0,38401.0,0.01]
[1643682661748,1.02695116,38402.0,38401.0,0.01]
[1643682661950,0.58438389,38402.0,38401.0,0.01]
[1643682662598,0.354006,38402.0,38401.0,0.01]
[1643682663099,0.58114553,38402.0,38401.0,0.01]
[1643682663697,0.75663273,38402.0,38401.0,0.01]
[1643682663896,0.58114553,38402.0,38401.0,0.01]
[1643682664097,0.75663273,38402.0,38401.0,0.01]
[1643682665899,0.58114553,38402.0,38401.0,0.01]
[1643682666347,0.58114553,38402.0,38401.0,0.00636966]
[1643682668752,0.354006,38402.0,38401.0,0.00636966]
[1643682673945,0.59874595,38402.0,38401.0,0.00636966]
[1643682674344,0.77423258,38402.0,38401.0,0.00636966]
[1643682675445,0.52949263,38402.0,38401.0,0.00636966]
[1643682675847,0.354006,38402.0,38401.0,0.00636966]
[1643682683345,0.254006,38402.0,38401.0,0.00636966]
[1643682686300,0.254006,38402.0,38401.0,0.00461532]
[1643682687498,0.202106,38402.0,38401.0,0.00461532]
[1643682688600,0.302106,38402.0,38401.0,0.00461532]
[1643682688851,0.202106,38402.0,38401.0,0.00461532]
[1643682689648,0.63092716,38402.0,38401.0,0.00461532]
[1643682693099,0.302106,38402.0,38401.0,0.00461532]
[1643682693300,0.47759714,38402.0,38401.0,0.00461532]
[1643682693500,0.302106,38402.0,38401.0,0.00461532]
[1643682693700,0.63103191,38402.0,38401.0,0.00461532]
[1643682694103,0.47759714,38402.0,38401.0,0.00461532]
[1643682694501,0.302106,38402.0,38401.0,0.00461532]
[1643682694900,0.47759714,38402.0,38401.0,0.00461532]
[1643682696546,0.861224,38402.0,38401.0,0.00461532]
[1643682701499,0.62723747,38402.0,38401.0,0.00461532]
[1643682701901,0.45174633,38402.0,38401.0,0.00461532]
[1643682702398,0.35174633,38402.0,38401.0,0.00461532]
[1643682702598,0.58598039,38402.0,38401.0,0.00461532]
[1643682702898,0.66147754,38402.0,38401.0,0.00461532]
[1643682703098,0.48598039,38402.0,38401.0,0.00461532]
[1643682704146,0.58598039,38402.0,38401.0,0.00461532]
[1643682704550,0.76147754,38402.0,38401.0,0.00461532]
[1643682705146,0.76147754,38402.0,38401.0,0.00265971]
[1643682706346,0.76147754,38402.0,38401.0,0.00117001]
[1643682707151,0.76092328,38402.0,38401.0,0.00117001]
[1643682708206,0.76050344,38402.0,38401.0,0.00117001]
[1643682708810,0.76050344,38402.0,38401.0,0.24672849]
[1643682709009,0.27452305,38402.0,38401.0,0.00117001]
[1643682709211,0.65472114,38403.0,38401.0,0.00117001]
[1643682709610,0.32572114,38403.0,38402.0,0.78121]
[1643682710209,0.32572114,38403.0,38402.0,0.77670717]
[1643682710707,0.32572114,38403.0,38402.0,0.77389717]
[1643682710908,0.32572114,38403.0,38402.0,0.77108717]
[1643682711111,0.32572114,38403.0,38402.0,0.76624415]
[1643682711346,0.42572114,38403.0,38402.0,0.75875199]
[1643682711547,0.42572114,38403.0,38402.0,0.75470282]
[1643682711746,0.42572114,38403.0,38402.0,0.74699798]
[1643682711947,0.42572114,38403.0,38402.0,0.74138028]
[1643682713448,0.32572114,38403.0,38402.0,0.96491707]
[1643682714250,0.32572114,38403.0,38402.0,0.74138028]
[1643682714649,0.37572114,38403.0,38402.0,0.74138028]
[1643682714851,0.42572114,38403.0,38402.0,0.74138028]
[1643682716399,0.42572114,38403.0,38402.0,0.96621337]
[1643682716599,0.42572114,38403.0,38402.0,0.74138028]
[1643682717400,0.42572114,38403.0,38402.0,1.32789497]
[1643682717401,0.32572114,38403.0,38402.0,1.32789497]
[1643682717606,0.00094168,38405.0,38402.0,1.77778897]
[1643682717801,0.06605231,38405.0,38404.0,0.99555848]
[1643682718002,0.06605231,38405.0,38404.0,1.099894]
[1643682718199,0.06605231,38405.0,38404.0,1.920894]
[1643682718851,0.06605231,38405.0,38404.0,1.170894]
[1643682722806,0.06511063,38405.0,38404.0,1.170894]
[1643682724099,0.06511063,38405.0,38404.0,1.270894]
[1643682724803,0.06511063,38405.0,38404.0,1.170894]
[1643682726845,0.06511063,38405.0,38404.0,0.821]
[1643682730002,0.11511063,38405.0,38404.0,0.821]
[1643682730599,0.18023763,38405.0,38404.0,0.821]
[1643682731497,0.11511063,38405.0,38404.0,0.821]
[1643682732299,0.15207163,38405.0,38404.0,0.821]
[1643682732497,0.20207163,38405.0,38404.0,0.821]
[1643682732700,0.26719963,38405.0,38404.0,0.821]
[1643682732998,0.55801595,38405.0,38404.0,0.821]
[1643682733202,0.55801595,38405.0,38404.0,0.52606172]
[1643682735149,0.26719963,38405.0,38404.0,0.52606172]
[1643682737250,0.16719963,38405.0,38404.0,0.52606172]
[1643682738498,0.26719963,38405.0,38404.0,0.52606172]
[1643682742750,0.16719963,38405.0,38404.0,0.52606172]
[1643682743848,0.26719963,38405.0,38404.0,0.52606172]
[1643682753014,0.49526249,38405.0,38404.0,0.52606172]
[1643682753213,0.26719963,38405.0,38404.0,0.52606172]
[1643682753412,0.26719963,38405.0,38404.0,0.40858579]
[1643682769396,0.26719963,38405.0,38404.0,0.82858579]
[1643682769996,0.59619963,38405.0,38404.0,0.82858579]
[1643682771098,0.26719963,38405.0,38404.0,0.82858579]
[1643682771361,0.59610784,38405.0,38404.0,0.82858579]
[1643682773060,0.26719963,38405.0,38404.0,0.82858579]
[1643682773460,0.26719963,38405.0,38404.0,0.74572722]
[1643682782898,0.59617291,38405.0,38404.0,0.74572722]
[1643682784596,0.59587391,38405.0,38404.0,0.74572722]
[1643682786648,0.26690063,38405.0,38404.0,0.74572722]
[1643682787047,0.59591672,38405.0,38404.0,0.74572722]
[1643682788049,0.26690063,38405.0,38404.0,0.74572722]
[1643682790201,0.20177263,38405.0,38404.0,0.74572722]
[1643682790801,0.53079408,38405.0,38404.0,0.74572722]
[1643682797600,0.20177263,38405.0,38404.0,0.74572722]
[1643682800398,0.10207163,38405.0,38404.0,0.74572722]
[1643682801646,0.15207163,38405.0,38404.0,0.74572722]
[1643682801848,0.20207163,38405.0,38404.0,0.74572722]
[1643682802050,0.7585694,38405.0,38404.0,0.74572722]
[1643682802447,0.20207163,38405.0,38404.0,0.74572722]
[1643682802851,0.53108738,38405.0,38404.0,0.74572722]
[1643682805106,0.10207163,38405.0,38404.0,0.74572722]
[1643682805305,0.10207163,38405.0,38404.0,0.74561821]
[1643682805703,0.43108738,38405.0,38404.0,0.74561821]
[1643682806104,0.43108738,38405.0,38404.0,0.32561821]
[1643682806304,0.20207163,38405.0,38404.0,0.32561821]
[1643682806908,0.11511063,38405.0,38404.0,0.32561821]
[1643682809353,0.06511063,38405.0,38404.0,0.32561821]
[1643682809554,0.11511063,38405.0,38404.0,0.32561821]
[1643682809753,0.06511063,38405.0,38404.0,0.32561821]
[1643682809954,0.11511063,38405.0,38404.0,0.32561821]
[1643682812704,0.06511063,38405.0,38404.0,0.32561821]
[1643682813104,0.11511063,38405.0,38404.0,0.32561821]
[1643682813511,0.05,38406.0,38404.0,0.58914484]
[1643682813706,0.05,38405.0,38404.0,0.39072921]
[1643682813906,0.13022729,38410.0,38404.0,0.39072921]
[1643682813907,0.13021865,38412.0,38404.0,0.992804]
[1643682814107,0.46045879,38415.0,38405.0,0.349894]
[1643682814108,0.00131728,38415.0,38405.0,0.349894]
[1643682814308,0.32892551,38418.0,38414.0,0.49159919]
[1643682814507,0.32892551,38419.0,38417.0,0.07867296]
[1643682814705,0.036961,38418.0,38417.0,0.07080567]
[1643682814905,0.32892551,38419.0,38417.0,0.07080567]
[1643682815106,0.39402414,38420.0,38417.0,0.07080567]
[1643682815506,0.49402414,38420.0,38417.0,0.07080567]
[1643682816005,0.130205,38418.0,38417.0,0.07080567]
[1643682816256,0.230205,38418.0,38417.0,0.07080567]
[1643682818865,0.180205,38418.0,38417.0,0.07080567]
[1643682819062,0.180205,38418.0,38417.0,0.30605328]
[1643682819063,0.05,38418.0,38417.0,0.30605328]
[1643682819859,0.05,38418.0,38417.0,0.29708608]
[1643682820105,0.05,38418.0,38417.0,0.30525677]
[1643682822704,0.05,38418.0,38415.0,0.23326951]
[1643682822905,0.05,38418.0,38414.0,0.51169782]
[1643682822906,0.06509539,38417.0,38414.0,0.26195741]
[1643682823305,0.11509539,38417.0,38415.0,0.22198337]
[1643682823604,0.036961,38416.0,38415.0,0.22198337]
[1643682824058,0.16509539,38417.0,38415.0,0.22198337]
[1643682825756,0.115104,38416.0,38413.0,0.01925209]
[1643682825955,0.31041557,38416.0,38413.0,0.01925209]
[1643682826154,0.36041557,38416.0,38412.0,0.25236877]
[1643682826756,0.36168391,38416.0,38412.0,0.25236877]
[1643682827606,0.36168391,38416.0,38411.0,0.01906099]
[1643682827808,0.36168391,38416.0,38408.0,0.22648488]
[1643682827809,0.06511,38414.0,38408.0,0.22648488]
[1643682828007,0.06511029,38412.0,38408.0,0.22648488]
[1643682828206,0.06511029,38412.0,38409.0,0.349894]
[1643682828405,0.06511029,38412.0,38408.0,0.22648488]
[1643682828805,0.11511029,38412.0,38408.0,0.22648488]
[1643682829606,0.11511029,38412.0,38408.0,0.22323789]
[1643682830005,0.065111,38411.0,38408.0,0.22323789]
[1643682830405,0.115111,38411.0,38408.0,0.22323789]
[1643682838102,0.05,38411.0,38408.0,0.22323789]
[1643682838750,0.04991665,38411.0,38408.0,0.22323789]
[1643682841753,0.09991665,38411.0,38408.0,0.22323789]